fUST/lending_fUST_20240518
["ID","MTS","AMOUNT","RATE_DAILY","PERIOD"]
[327350304,1716006638915,-500.0,0.00016438,2]
[327350306,1716006638924,-500.0,0.00016438,2]
[327350308,1716006638934,-202.19377583,0.00016438,2]
[327350310,1716006638943,-569.94614458,0.00016438,2]
[327350312,1716006638951,-500.0,0.00016438,2]
[327350314,1716006638960,-500.0,0.00016438,2]
[327350316,1716006638969,-568.43379303,0.00016438,2]
[327350318,1716006638978,-565.22766407,0.00016438,2]
[327350320,1716006638987,-500.0,0.00016438,2]
[327350322,1716006638996,-185.84017691,0.00016438,2]
[327350324,1716006639006,-522.08954787,0.00016438,2]
[327350326,1716006639015,-514.64272281,0.00016438,2]
[327350328,1716006639025,-565.2586462,0.00016438,2]
[327350330,1716006639035,-500.0,0.00016438,2]
[327350332,1716006639045,-500.0,0.00016438,2]
[327350334,1716006639054,-514.64243649,0.00016438,2]
[327350336,1716006639064,-500.0,0.00016438,2]
[327350338,1716006639074,-500.0,0.00016438,2]
[327350340,1716006639083,-500.0,0.00016438,2]
[327350342,1716006639093,-508.72561443,0.00016438,2]
[327350344,1716006639102,-509.93420702,0.00016438,2]
[327350346,1716006639112,-505.19323275,0.00016438,2]
[327350348,1716006639122,-521.69775046,0.00016438,2]
[327350350,1716006639131,-500.0,0.00016438,2]
[327350352,1716006639140,-511.21175295,0.00016438,2]
[327350354,1716006639149,-563.87,0.00016438,2]
[327350356,1716006639158,-505.25175662,0.00016438,2]
[327350358,1716006639168,-500.0,0.00016438,2]
[327350360,1716006639177,-500.0,0.00016438,2]
[327350362,1716006639186,-505.46397718,0.00016438,2]
[327350364,1716006639196,-640.16,0.00016438,2]
[327350366,1716006639205,-640.16,0.00016438,2]
[327350368,1716006639215,-640.16,0.00016438,2]
[327350370,1716006639224,-640.16,0.00016438,2]
[327350372,1716006639234,-571.17517974,0.00016438,2]
[327350374,1716006639243,-513.49713772,0.00016438,2]
[327350376,1716006639254,-491.21178867,0.00016438,2]
[327350378,1716006639264,-5058.19,0.00016438,2]
[327350380,1716006639274,-506.52770784,0.00016438,2]
[327350382,1716006639284,-500.0,0.00016438,2]
[327350384,1716006639293,-511.70366749,0.00016438,2]
[327350386,1716006639303,-500.0,0.00016438,2]
[327350388,1716006639312,-500.0,0.00016438,2]
[327350390,1716006639322,-500.0,0.00016438,2]
[327350392,1716006639331,-500.0,0.00016438,2]
[327350394,1716006639341,-500.0,0.00016438,2]
[327350396,1716006639350,-2310.72,0.00016438,2]
[327350398,1716006639360,-500.0,0.00016438,2]
[327350400,1716006639370,-4188.03,0.00016438,2]
[327350402,1716006639379,-500.0,0.00016438,2]
[327350404,1716006639388,-501.15607277,0.00016438,2]
[327350406,1716006639399,-501.6085611,0.00016438,2]
[327350408,1716006639408,-504.56600843,0.00016438,2]
[327350410,1716006639418,-500.0,0.00016438,2]
[327350412,1716006639427,-500.0,0.00016438,2]
[327350414,1716006639437,-500.0,0.00016438,2]
[327350416,1716006639447,-500.0,0.00016438,2]
[327350418,1716006639456,-509.02999421,0.00016438,2]
[327350419,1716006639466,-500.0,0.00016438,2]
[327350422,1716006639476,-506.53639279,0.00016438,2]
[327350423,1716006639485,-500.0,0.00016438,2]
[327350426,1716006639497,-500.0,0.00016438,2]
[327350428,1716006639506,-500.0,0.00016438,2]
[327350430,1716006639516,-500.0,0.00016438,2]
[327350432,1716006639526,-500.0,0.00016438,2]
[327350434,1716006639536,-303.77288068,0.00016438,2]
[327350436,1716006639546,-504.26717806,0.00016438,2]
[327350438,1716006639556,-500.0,0.00016438,2]
[327350440,1716006639566,-5652.97,0.00016438,2]
[327350441,1716006639576,-500.0,0.00016438,2]
[327350443,1716006639586,-503.90597654,0.00016438,2]
[327350446,1716006639597,-506.23635785,0.00016438,2]
[327350448,1716006639607,-500.0,0.00016438,2]
[327350450,1716006639617,-500.0,0.00016438,2]
[327350452,1716006639627,-24540.07,0.00016438,2]
[327350454,1716006639637,-3252.04993597,0.00016438,2]
[327350456,1716006639657,-396.30006403,0.00016438,2]
[327350458,1716006639668,-267.19043753,0.00016438,2]
[327350586,1716006640937,-3699.56949019,0.00015,2]
[327350588,1716006640947,-270.11054488,0.00016438,2]
[327350590,1716006640957,-500.0,0.00016438,2]
[327350593,1716006640967,-501.20631385,0.00016438,2]
[327350595,1716006640976,-507.21335429,0.00016438,2]
[327350597,1716006640985,-500.0,0.00016438,2]
[327350599,1716006640996,-3426.97,0.00016438,2]
[327350601,1716006641005,-501.00130243,0.00016438,2]
[327350603,1716006641015,-500.0,0.00016438,2]
[327350605,1716006641025,-500.0,0.00016438,2]
[327350607,1716006641034,-500.0,0.00016438,2]
[327350609,1716006641044,-500.0,0.00016438,2]
[327350611,1716006641053,-386.31880676,0.00016438,2]
[327350613,1716006641063,-500.0,0.00016438,2]
[327350615,1716006641072,-3084.82,0.00016438,2]
[327350617,1716006641081,-501.71443717,0.00016438,2]
[327350619,1716006641091,-1213.37,0.00016438,2]
[327350621,1716006641100,-500.0,0.00016438,2]
[327350623,1716006641110,-500.0,0.00016438,2]
[327350625,1716006641120,-646.94021299,0.00016438,2]
[327350627,1716006641129,-506.10049472,0.00016438,2]
[327350629,1716006641139,-500.0,0.00016438,2]
[327350631,1716006641148,-506.91188355,0.00016438,2]
[327350633,1716006641157,-776.57,0.00016438,2]
[327350635,1716006641166,-502.7989633,0.00016438,2]
[327350637,1716006641175,-500.0,0.00016438,2]
[327350639,1716006641184,-500.0,0.00016438,2]
[327350642,1716006641200,-503.70904018,0.00016438,2]
[327350644,1716006641216,-503.17044641,0.00016438,2]
[327350646,1716006641226,-504.44179032,0.00016438,2]
[327350648,1716006641235,-502.05036398,0.00016438,2]
[327350650,1716006641247,-500.0,0.00016438,2]
[327350652,1716006641256,-610.67,0.00016438,2]
[327350654,1716006641265,-500.0,0.00016438,2]
[327350655,1716006641275,-500.0,0.00016438,2]
[327350656,1716006641285,-500.0,0.00016438,2]
[327350657,1716006641295,-503.94273132,0.00016438,2]
[327350658,1716006641304,-500.0,0.00016438,2]
[327350659,1716006641314,-546.86818698,0.00016438,2]
[327350660,1716006641324,-500.0,0.00016438,2]
[327350661,1716006641333,-500.0,0.00016438,2]
[327350662,1716006641342,-500.0,0.00016438,2]
[327350663,1716006641353,-500.0,0.00016438,2]
[327350664,1716006641366,-501.56839334,0.00016438,2]
[327350666,1716006641375,-742.76909193,0.00016438,2]
[327350908,1716006643669,-332.13090807,0.00016438,2]
[327350910,1716006643679,-85.23717394,0.00016438,2]
[327350913,1716006643691,-415.94176072,0.00016438,2]
[327350915,1716006643700,-206.99399409,0.00016438,2]
[327351040,1716006646448,-321.73892755,0.00016438,2]
[327351041,1716006646458,-276.56141454,0.00016438,2]
[327351042,1716006646471,-223.43858546,0.00016438,2]
[327351043,1716006646480,-501.80590417,0.00016438,2]
[327351044,1716006646489,-500.0,0.00016438,2]
[327351045,1716006646499,-500.0,0.00016438,2]
[327351046,1716006646509,-500.0,0.00016438,2]
[327351047,1716006646518,-155.92973857,0.00016438,2]
[327351057,1716007648175,-3699.56949019,0.00015,2]
[327351058,1716007648195,-447.81493057,0.00016,2]
[327351118,1716007832694,-706.99,0.00015,2]
[327351225,1716007838700,-442.08076386,0.00015,2]
[327351227,1716007838710,-914.28329535,0.00015,2]
[327351242,1716007838855,-2785.28619484,0.00015,2]
[327351244,1716007838865,-4256.32390337,0.00016,2]
[327351246,1716007838878,-3263.50560959,0.00016,2]
[327351248,1716007838887,-417.06273246,0.00016165,2]
[327351250,1716007838896,-320.1,0.00016266,3]
[327351252,1716007838905,-320.1,0.00016266,2]
[327351254,1716007838914,-637.87022173,0.00016335,2]
[327351256,1716007838923,-224.05808449,0.00016338,2]
[327351258,1716007838932,-3346.1683299,0.00016338,2]
[327351260,1716007838941,-2000.0,0.00016338,2]
[327351262,1716007838950,-1000.0,0.00016371,2]
[327351264,1716007838959,-7481.53468129,0.000164,2]
[327351266,1716007838967,-291.1899476,0.000164,2]
[327351267,1716007838976,-291.1899476,0.000164,2]
[327351270,1716007838986,-1142.44395601,0.00016435,2]
[327351271,1716007838995,-1819.51446963,0.00016435,2]
[327351273,1716007839004,-171.45217076,0.00016435,2]
[327351275,1716007839014,-426.3712099,0.00016435,2]
[327351277,1716007839023,-941.07450394,0.00016436,2]
[327351279,1716007839032,-1496.49508562,0.00016437,2]
[327351281,1716007839042,-75909.63939299,0.00016437,2]
[327351283,1716007839052,-5364.94294758,0.00016438,3]
[327351285,1716007839061,-26571.31776465,0.00016438,3]
[327351288,1716007839073,-702.11748921,0.00016438,3]
[327351398,1716008439229,-330.96158487,9.999e-05,2]
[327351399,1716008641855,500.0,0.00015712,7]
[327351400,1716008641989,500.0,0.00015712,7]
[327351401,1716008642645,500.0,0.00015712,7]
[327351402,1716008642745,209.07,0.00015712,7]
[327351403,1716008643434,500.0,0.00015712,7]
[327351404,1716008644219,500.0,0.00015712,7]
[327351405,1716008645012,500.0,0.00015712,7]
[327351406,1716008645778,500.0,0.00015712,7]
[327351407,1716008646538,500.0,0.00015712,7]
[327351408,1716008647335,500.0,0.00015712,7]
[327351409,1716008648112,500.0,0.00015712,7]
[327351410,1716008648949,500.0,0.00015712,7]
[327351411,1716008649698,500.0,0.00015712,7]
[327351412,1716008650454,633.13,0.00015712,7]
[327351413,1716008703451,273.37336231,9.9e-05,2]
[327351414,1716008831114,-1149.07076386,0.00015,2]
[327351415,1716008831138,-330.96158487,0.00015025,2]
[327351416,1716008831160,-3618.59103115,0.00015026,2]
[327351417,1716008831203,465.16079276,9.999e-05,2]
[327351418,1716008849116,-3699.56949019,0.00015027,2]
[327351419,1716008849140,-879.72616509,0.00015028,2]
[327351432,1716009031871,-3699.56949019,0.00015095,2]
[327351433,1716009031880,-1439.7176633,0.00015096,2]
[327351434,1716009031889,-464.222109,0.00015219,2]
[327351435,1716009031899,-6806.8533774,0.00015219,2]
[327351436,1716009031908,-633.36309966,0.00015722,2]
[327351437,1716009031916,-7967.64444353,0.00016,2]
[327351438,1716009031925,-189.5809831,0.00016183,2]
[327351439,1716009031935,-308.8481177,0.000162,2]
[327351440,1716009031944,-153.0,0.000162,2]
[327351441,1716009031953,-773.89252643,0.00016236,2]
[327351442,1716009031962,-170.08547036,0.00016238,2]
[327351443,1716009031971,-154.25941059,0.00016238,2]
[327351444,1716009031980,-3346.1683299,0.00016238,2]
[327351445,1716009031989,-320.1,0.0001628,3]
[327351446,1716009031998,-320.1,0.0001628,2]
[327351447,1716009032008,-417.06273246,0.00016284,2]
[327351448,1716009032018,-154.25941057,0.00016288,2]
[327351449,1716009032027,-291.1899476,0.000163,2]
[327351450,1716009032038,-204.3360345,0.000163,2]
[327351451,1716009032047,-153.0,0.000163,2]
[327351452,1716009032056,-153.0,0.000163,2]
[327351453,1716009032066,-1000.0,0.00016335,2]
[327351454,1716009032075,-160.06089797,0.00016335,2]
[327351455,1716009032084,-1076.51591529,0.00016335,2]
[327351456,1716009032094,-1819.51446963,0.00016336,2]
[327351457,1716009032103,-941.07450394,0.00016336,2]
[327351458,1716009032112,-1142.44395601,0.00016336,2]
[327351459,1716009032122,-997.15183921,0.00016337,2]
[327351483,1716009037918,-499.34324641,0.00016337,2]
[327351485,1716009037928,-171.45217076,0.00016337,2]
[327351487,1716009037937,-2072.48590723,0.00016337,2]
[327351499,1716009038046,-1331.94426912,0.00016337,2]
[327351503,1716009038058,-603.12900096,0.00016337,2]
[327351506,1716009038069,-71902.08021568,0.00016337,2]
[327351509,1716009038080,-41753.17247351,0.00016338,3]
[327351512,1716009038089,-154.25941057,0.00016338,2]
[327351514,1716009038098,-16363.01334639,0.00016338,2]
[327351669,1716009042977,-40809.81244536,0.00016338,2]
[327351686,1716009043121,-2000.0,0.00016338,2]
[327351688,1716009043131,-1000.0,0.00016377,2]
[327351690,1716009043141,-4222.10020806,0.00016379,2]
[327351692,1716009043150,-1000.0,0.00016399,2]
[327351694,1716009043159,-153.0,0.000164,2]
[327351696,1716009043168,-153.0,0.000164,2]
[327351698,1716009043177,-153.0,0.000164,2]
[327351700,1716009043187,-200.37845704,0.00016425,2]
[327351702,1716009043202,-799.62154296,0.00016425,2]
[327351704,1716009043212,-1000.0,0.00016425,2]
[327351706,1716009043222,-283.06125228,0.00016436,2]
[327351708,1716009043231,-162.05163489,0.00016437,2]
[327351710,1716009043240,-1304.62250127,0.00016438,3]
[327351749,1716009103683,500.0,0.00015712,7]
[327351750,1716009104435,526.28,0.00015712,7]
[327351755,1716010053165,-3699.56949019,0.00015228,2]
[327351756,1716010053186,-350.54938561,0.00015229,2]
[327351757,1716010054151,-232.111054,0.0001523,2]
[327351758,1716010054174,-154.70605849,0.00015555,2]
[327351759,1716010054211,-184.14289977,0.00016,2]
[327351765,1716010198097,10000.0,0.00025,60]
[327351840,1716010238202,-3699.56949019,0.00015999,2]
[327351842,1716010238212,-1149.07076386,0.00015999,2]
[327351844,1716010238222,-7783.50154376,0.00016,2]
[327351846,1716010238232,-364.9375138,0.000162,2]
[327351847,1716010238241,-417.06273246,0.00016209,2]
[327351849,1716010238250,-677.1559606,0.00016239,2]
[327351851,1716010238259,-266.7,0.00016249,3]
[327351853,1716010238268,-266.7,0.00016249,2]
[327351854,1716010238278,-461.87848018,0.00016273,2]
[327351856,1716010238287,-1000.0,0.00016327,2]
[327351858,1716010238297,-4222.10020806,0.0001633,2]
[327351861,1716010238306,-942.53705457,0.00016337,2]
[327351863,1716010238315,-154.25941057,0.00016338,2]
[327351865,1716010238325,-16363.01334639,0.00016338,2]
[327351867,1716010238334,-2000.0,0.00016338,2]
[327351869,1716010238344,-1000.0,0.00016339,2]
[327351871,1716010238353,-492.86802467,0.00016362,2]
[327351873,1716010238363,-153.0,0.000164,2]
[327351875,1716010238372,-154.5302682,0.000164,2]
[327351876,1716010238382,-154.97824422,0.00016434,2]
[327351878,1716010238392,-1412.89044337,0.00016434,2]
[327351880,1716010238402,-181.74855529,0.00016434,2]
[327351882,1716010238412,-494.32540629,0.00016434,2]
[327351884,1716010238421,-217.41667193,0.00016434,2]
[327351886,1716010238431,-310.59258199,0.00016434,2]
[327351888,1716010238441,-238.08732197,0.00016434,2]
[327351890,1716010238451,-1913.56388252,0.00016434,2]
[327351891,1716010238460,-215.37581827,0.00016434,2]
[327351893,1716010238469,-1252.23432743,0.00016434,2]
[327351895,1716010238479,-273.08901938,0.00016434,2]
[327351897,1716010238488,-154.98808292,0.00016435,2]
[327351899,1716010238498,-935.74782095,0.00016435,2]
[327351901,1716010238507,-1394.34988889,0.00016436,2]
[327351902,1716010238517,-369.36821147,0.00016436,2]
[327351904,1716010238526,-530.52015775,0.00016436,2]
[327351906,1716010238537,-161.7686156,0.00016436,2]
[327351908,1716010238546,-516.93610369,0.00016436,2]
[327351910,1716010238556,-1714.78784612,0.00016436,2]
[327351911,1716010238566,-19147.7957635,0.00016436,2]
[327351913,1716010238575,-236.19420311,0.00016436,2]
[327351915,1716010238584,-2472.17788172,0.00016436,2]
[327351917,1716010238594,-155.85348378,0.00016436,2]
[327351919,1716010238603,-155.49089692,0.00016436,2]
[327351921,1716010238613,-598.15526028,0.00016436,2]
[327351923,1716010238623,-311.9005466,0.00016436,2]
[327351925,1716010238632,-745.84072338,0.00016436,2]
[327351926,1716010238641,-195.5453464,0.00016436,2]
[327351927,1716010238651,-1670.68499482,0.00016436,2]
[327351928,1716010238660,-197.00814044,0.00016436,2]
[327351929,1716010238673,-4712.63169695,0.00016438,3]
[327351931,1716010238682,-56652.7132894,0.00016438,3]
[327351933,1716010238692,-500.0,0.00016438,2]
[327351935,1716010238701,-502.33557891,0.00016438,2]
[327351936,1716010238712,-423.48114422,0.00016438,2]
[327351938,1716010238721,-503.58629594,0.00016438,2]
[327351940,1716010238731,-501.3410394,0.00016438,2]
[327351942,1716010238740,-500.0,0.00016438,2]
[327351943,1716010238752,-497.09165265,0.00016438,2]
[327351945,1716010238762,-502.19025893,0.00016438,2]
[327351947,1716010238771,-502.19920621,0.00016438,2]
[327351948,1716010238780,-501.63514118,0.00016438,2]
[327351950,1716010238790,-500.80389508,0.00016438,2]
[327351951,1716010238799,-500.0,0.00016438,2]
[327351952,1716010238812,-500.0,0.00016438,2]
[327351953,1716010238823,-502.21155139,0.00016438,2]
[327351954,1716010238832,-598.61881444,0.00016438,2]
[327351955,1716010238842,-501.37380739,0.00016438,2]
[327351956,1716010238852,-506.23851799,0.00016438,2]
[327351957,1716010238862,-501.50186471,0.00016438,2]
[327351958,1716010238872,-501.67118055,0.00016438,2]
[327351959,1716010238885,-501.8025543,0.00016438,2]
[327351960,1716010238895,-502.03869105,0.00016438,2]
[327351961,1716010238904,-500.0,0.00016438,2]
[327351962,1716010238913,-496.72167351,0.00016438,2]
[327351963,1716010238923,-269.00562539,0.00016438,2]
[327351964,1716010238932,-151.0,0.00016438,2]
[327351965,1716010238942,-226.154825,0.00016438,2]
[327351966,1716010238952,-500.0,0.00016438,2]
[327351967,1716010238962,-502.59145835,0.00016438,2]
[327351968,1716010238971,-502.40917785,0.00016438,2]
[327351969,1716010238981,-549.66038859,0.00016438,2]
[327351970,1716010238991,-502.97511639,0.00016438,2]
[327351971,1716010239000,-502.52195074,0.00016438,2]
[327351972,1716010239010,-500.0,0.00016438,2]
[327351973,1716010239020,-504.13869779,0.00016438,2]
[327351974,1716010239030,-501.25576528,0.00016438,2]
[327351975,1716010239040,-500.520322,0.00016438,2]
[327351976,1716010239050,-501.27242285,0.00016438,2]
[327351977,1716010239061,-502.15095282,0.00016438,2]
[327351978,1716010239071,-500.73076359,0.00016438,2]
[327351979,1716010239080,-510.1134858,0.00016438,2]
[327351980,1716010239090,-501.3686807,0.00016438,2]
[327351981,1716010239100,-502.47710006,0.00016438,2]
[327351982,1716010239110,-509.49216685,0.00016438,2]
[327351983,1716010239120,-507.76393073,0.00016438,2]
[327351984,1716010239130,-501.73833322,0.00016438,2]
[327351985,1716010239140,-501.92717773,0.00016438,2]
[327351986,1716010239150,-502.89071705,0.00016438,2]
[327351987,1716010239160,-503.41415471,0.00016438,2]
[327351988,1716010239171,-501.32013921,0.00016438,2]
[327351989,1716010239181,-504.77630118,0.00016438,2]
[327351990,1716010239191,-501.97624276,0.00016438,2]
[327351991,1716010239202,-519.14313656,0.00016438,2]
[327351992,1716010239212,-503.48114508,0.00016438,2]
[327351993,1716010239222,-502.37017628,0.00016438,2]
[327351994,1716010239232,-503.92729263,0.00016438,2]
[327351995,1716010239242,-501.73127754,0.00016438,2]
[327351996,1716010239253,-500.0,0.00016438,2]
[327351997,1716010239263,-501.87634161,0.00016438,2]
[327351998,1716010239273,-501.73481911,0.00016438,2]
[327351999,1716010239283,-158.80837085,0.00016438,2]
[327352000,1716010239293,-207.31789753,0.00016438,2]
[327352001,1716010239303,-501.87578921,0.00016438,2]
[327352002,1716010239317,-502.21349185,0.00016438,2]
[327352003,1716010239332,-501.93659509,0.00016438,2]
[327352004,1716010239347,-506.60546792,0.00016438,2]
[327352005,1716010239359,-500.0,0.00016438,2]
[327352006,1716010239373,-500.72470488,0.00016438,2]
[327352007,1716010239385,-502.43960808,0.00016438,2]
[327352008,1716010239395,-500.0,0.00016438,2]
[327352009,1716010239406,-500.0,0.00016438,2]
[327352010,1716010239419,-257.917743,0.00016438,2]
[327352011,1716010239432,-514.7139242,0.00016438,2]
[327352012,1716010239444,-257.917743,0.00016438,2]
[327352013,1716010239456,-503.11489218,0.00016438,2]
[327352014,1716010239469,-257.917743,0.00016438,2]
[327352015,1716010239481,-257.917743,0.00016438,2]
[327352016,1716010239494,-257.917743,0.00016438,2]
[327352017,1716010239508,-257.917743,0.00016438,2]
[327352018,1716010239522,-257.917743,0.00016438,2]
[327352019,1716010239535,-257.917743,0.00016438,2]
[327352020,1716010239547,-257.917743,0.00016438,2]
[327352021,1716010239558,-544.10959379,0.00016438,2]
[327352022,1716010239569,-257.917743,0.00016438,2]
[327352023,1716010239580,-507.09461867,0.00016438,2]
[327352024,1716010239592,-257.917743,0.00016438,2]
[327352027,1716010239605,-257.917743,0.00016438,2]
[327352029,1716010239618,-257.917743,0.00016438,2]
[327352031,1716010239631,-257.917743,0.00016438,2]
[327352034,1716010239643,-257.917743,0.00016438,2]
[327352036,1716010239654,-257.917743,0.00016438,2]
[327352038,1716010239667,-257.917743,0.00016438,2]
[327352040,1716010239680,-257.917743,0.00016438,2]
[327352043,1716010239693,-257.917743,0.00016438,2]
[327352045,1716010239704,-503.41110516,0.00016438,2]
[327352047,1716010239718,-257.91773329,0.00016438,2]
[327352050,1716010239731,-160.13523699,0.00016438,2]
[327352052,1716010239744,-500.21504838,0.00016438,2]
[327352054,1716010239757,-648.32191241,0.00016438,2]
[327352057,1716010239769,-504.00958737,0.00016438,2]
[327352059,1716010239783,-501.92126739,0.00016438,2]
[327352062,1716010239796,-500.60321915,0.00016438,2]
[327352064,1716010239809,-502.33916104,0.00016438,2]
[327352066,1716010239823,-501.0762932,0.00016438,2]
[327352069,1716010239838,-501.29505758,0.00016438,2]
[327352071,1716010239850,-151.0,0.00016438,2]
[327352073,1716010239861,-151.0,0.00016438,2]
[327352076,1716010239873,-151.0,0.00016438,2]
[327352078,1716010239884,-153.57665,0.00016438,2]
[327352080,1716010239895,-188.12688385,0.00016438,2]
[327352082,1716010239907,-500.28783267,0.00016438,2]
[327352085,1716010239919,-505.06299649,0.00016438,2]
[327352089,1716010239932,-500.95129566,0.00016438,2]
[327352091,1716010239946,-507.61820977,0.00016438,2]
[327352092,1716010239959,-608.56001064,0.00016438,2]
[327352093,1716010239971,-502.05997126,0.00016438,2]
[327352095,1716010239981,-501.72219746,0.00016438,2]
[327352098,1716010239992,-502.21384019,0.00016438,2]
[327352100,1716010240004,-500.0,0.00016438,2]
[327352102,1716010240017,-500.0,0.00016438,2]
[327352104,1716010240029,-500.0,0.00016438,2]
[327352107,1716010240043,-513.2078559,0.00016438,2]
[327352109,1716010240057,-151.0,0.00016438,2]
[327352111,1716010240069,-298.022656,0.00016438,2]
[327352113,1716010240081,-507.7976675,0.00016438,2]
[327352115,1716010240091,-500.0,0.00016438,2]
[327352118,1716010240102,-500.0,0.00016438,2]
[327352120,1716010240113,-500.65706453,0.00016438,2]
[327352123,1716010240136,-500.0,0.00016438,2]
[327352126,1716010240152,-500.0,0.00016438,2]
[327352128,1716010240166,-500.0,0.00016438,2]
[327352130,1716010240179,-527.05136394,0.00016438,2]
[327352133,1716010240193,-503.49732163,0.00016438,2]
[327352135,1716010240206,-504.02582672,0.00016438,2]
[327352138,1716010240220,-501.38530356,0.00016438,2]
[327352140,1716010240234,-623.82920468,0.00016438,2]
[327352142,1716010240247,-503.50385804,0.00016438,2]
[327352145,1716010240265,-500.0,0.00016438,2]
[327352148,1716010240278,-502.10785354,0.00016438,2]
[327352151,1716010240291,-503.31528424,0.00016438,2]
[327352153,1716010240304,-505.15356841,0.00016438,2]
[327352156,1716010240316,-500.0,0.00016438,2]
[327352158,1716010240328,-501.99970545,0.00016438,2]
[327352160,1716010240341,-501.6171212,0.00016438,2]
[327352163,1716010240353,-500.0,0.00016438,2]
[327352166,1716010240366,-501.6096035,0.00016438,2]
[327352168,1716010240379,-508.14265655,0.00016438,2]
[327352170,1716010240392,-414.87102176,0.00016438,2]
[327352173,1716010240405,-501.89116612,0.00016438,2]
[327352175,1716010240417,-502.51004455,0.00016438,2]
[327352177,1716010240431,-503.15830673,0.00016438,2]
[327352179,1716010240443,-504.70226746,0.00016438,2]
[327352182,1716010240456,-503.66437255,0.00016438,2]
[327352184,1716010240469,-151.0,0.00016438,2]
[327352185,1716010240482,-502.10553083,0.00016438,2]
[327352187,1716010240495,-524.32963427,0.00016438,2]
[327352189,1716010240508,-497.78888575,0.00016438,2]
[327352191,1716010240521,-502.17281274,0.00016438,2]
[327352193,1716010240533,-500.97931386,0.00016438,2]
[327352195,1716010240545,-502.29421865,0.00016438,2]
[327352197,1716010240557,-501.79008016,0.00016438,2]
[327352198,1716010240569,-500.0,0.00016438,2]
[327352200,1716010240581,-501.73351118,0.00016438,2]
[327352202,1716010240594,-500.0,0.00016438,2]
[327352204,1716010240605,-500.0,0.00016438,2]
[327352205,1716010240618,-500.0,0.00016438,2]
[327352206,1716010240630,-509.29819655,0.00016438,2]
[327352207,1716010240642,-501.86008471,0.00016438,2]
[327352208,1716010240655,-500.0,0.00016438,2]
[327352209,1716010240670,-512.40213468,0.00016438,2]
[327352210,1716010240683,-500.0,0.00016438,2]
[327352211,1716010240695,-501.81856116,0.00016438,2]
[327352212,1716010240707,-384.92214262,0.00016438,2]
[327352213,1716010240720,-500.0,0.00016438,2]
[327352214,1716010240731,-507.47490064,0.00016438,2]
[327352215,1716010240742,-502.32976113,0.00016438,2]
[327352216,1716010240755,-506.90788683,0.00016438,2]
[327352217,1716010240767,-379.79887098,0.00016438,2]
[327352218,1716010240778,-510.16360885,0.00016438,2]
[327352219,1716010240789,-281.55010882,0.00016438,2]
[327352220,1716010240800,-500.64414807,0.00016438,2]
[327352221,1716010240812,-505.9033601,0.00016438,2]
[327352222,1716010240823,-515.3786428,0.00016438,2]
[327352223,1716010240834,-500.0,0.00016438,2]
[327352224,1716010240845,-546.01300115,0.00016438,2]
[327352225,1716010240856,-506.46880664,0.00016438,2]
[327352226,1716010240867,-506.6435255,0.00016438,2]
[327352227,1716010240879,-504.35878576,0.00016438,2]
[327352228,1716010240890,-500.0,0.00016438,2]
[327352229,1716010240901,-506.42159147,0.00016438,2]
[327352230,1716010240912,-508.36847,0.00016438,2]
[327352231,1716010240923,-500.0,0.00016438,2]
[327352232,1716010240934,-505.70912941,0.00016438,2]
[327352233,1716010240945,-506.01467331,0.00016438,2]
[327352234,1716010240956,-507.28998199,0.00016438,2]
[327352235,1716010240967,-505.27625253,0.00016438,2]
[327352236,1716010240977,-500.0,0.00016438,2]
[327352237,1716010240989,-500.0,0.00016438,2]
[327352238,1716010241159,-500.78406,0.00016438,2]
[327352239,1716010241172,-213.887828,0.00016438,2]
[327352240,1716010241181,-213.887828,0.00016438,2]
[327352241,1716010241191,-213.887828,0.00016438,2]
[327352242,1716010241200,-213.887828,0.00016438,2]
[327352243,1716010241209,-213.887828,0.00016438,2]
[327352244,1716010241219,-213.887828,0.00016438,2]